[Event "*** SCC Grand Prix: Titled Tuesday Blitz"]
[Site "Chess.com"]
[Date "2020.10.06"]
[Round "3"]
[White "Alexander_Kachko"]
[Black "kot60"]
[Result "1/2-1/2"]
[WhiteElo "2736"]
[BlackElo "2437"]
[TimeControl "180+1"]
[EndTime "10:27:07 PDT"]
[Termination "Game drawn by agreement"]

1. e4 {[%clk 0:03:00.9]} 1... e5 {[%clk 0:02:58.9]} 2. Nf3 {[%clk 0:03:00.4]}
2... Nc6 {[%clk 0:02:58.2]} 3. Bc4 {[%clk 0:03:00.1]} 3... Be7 {[%clk
0:02:57.1]} 4. c3 {[%clk 0:02:59.8]} 4... Nf6 {[%clk 0:02:56.7]} 5. d3 {[%clk
0:02:59.7]} 5... O-O {[%clk 0:02:56.4]} 6. Bb3 {[%clk 0:02:58.4]} 6... d6 {[%clk
0:02:56.8]} 7. Nbd2 {[%clk 0:02:58.1]} 7... h6 {[%clk 0:02:56.9]} 8. Nf1 {[%clk
0:02:56.7]} 8... Nh7 {[%clk 0:02:57.5]} 9. Ng3 {[%clk 0:02:56.3]} 9... Bg5
{[%clk 0:02:57.2]} 10. Nxg5 {[%clk 0:02:54.4]} 10... Nxg5 {[%clk 0:02:56.4]} 11.
O-O {[%clk 0:02:52.4]} 11... Ne6 {[%clk 0:02:45.7]} 12. Nf5 {[%clk 0:02:49]}
12... Qf6 {[%clk 0:02:43.7]} 13. Qf3 {[%clk 0:02:47.6]} 13... Kh7 {[%clk
0:02:34.5]} 14. Qg3 {[%clk 0:02:31.3]} 14... Nc5 {[%clk 0:02:24.8]} 15. Bc2
{[%clk 0:02:00.1]} 15... Bxf5 {[%clk 0:01:54.7]} 16. exf5 {[%clk 0:02:01]} 16...
Qxf5 {[%clk 0:01:54.6]} 17. f4 {[%clk 0:01:58.5]} 17... e4 {[%clk 0:01:51.6]}
18. b4 {[%clk 0:01:39.7]} 18... Nxd3 {[%clk 0:01:49.8]} 19. Be3 {[%clk
0:01:28.8]} 19... a6 {[%clk 0:01:44.9]} 20. Rad1 {[%clk 0:01:17.6]} 20... Rae8
{[%clk 0:01:43.5]} 21. Qh4 {[%clk 0:01:12.9]} 21... Qg6 {[%clk 0:01:10.2]} 22.
f5 {[%clk 0:01:09]} 22... Qf6 {[%clk 0:01:08.1]} 23. Qg4 {[%clk 0:01:02.2]}
23... d5 {[%clk 0:01:00.4]} 24. Kh1 {[%clk 0:00:48.9]} 24... Rg8 {[%clk
0:00:50.4]} 25. Bd2 {[%clk 0:00:40.1]} 25... Nce5 {[%clk 0:00:47.6]} 26. Qh3
{[%clk 0:00:39]} 26... c5 {[%clk 0:00:37]} 27. Be3 {[%clk 0:00:37.7]} 27... b6
{[%clk 0:00:33.7]} 28. a3 {[%clk 0:00:35.7]} 28... Nc4 {[%clk 0:00:25.1]} 29.
Bg1 {[%clk 0:00:24.9]} 29... Qxc3 {[%clk 0:00:22.3]} 30. Bxd3 {[%clk 0:00:25.2]}
30... exd3 {[%clk 0:00:21.7]} 31. Rxd3 {[%clk 0:00:25.5]} 31... Qf6 {[%clk
0:00:18.7]} 32. bxc5 {[%clk 0:00:25.7]} 32... bxc5 {[%clk 0:00:18.3]} 33. Bxc5
{[%clk 0:00:25.9]} 33... Re4 {[%clk 0:00:17.2]} 34. Bb4 {[%clk 0:00:24.3]} 34...
Rge8 {[%clk 0:00:14.1]} 35. Bc3 {[%clk 0:00:24.2]} 35... d4 {[%clk 0:00:14.4]}
36. Ba1 {[%clk 0:00:20.7]} 36... Ne3 {[%clk 0:00:13.8]} 1/2-1/2

[Event "*** SCC Grand Prix: Titled Tuesday Blitz"]
[Site "Chess.com"]
[Date "2020.10.06"]
[Round "3"]
[White "Omk124"]
[Black "youngKID"]
[Result "0-1"]
[WhiteElo "2459"]
[BlackElo "2790"]
[TimeControl "180+1"]
[EndTime "10:27:08 PDT"]
[Termination "youngKID won by resignation"]

1. e4 {[%clk 0:03:00.9]} 1... c5 {[%clk 0:02:59.3]} 2. Nf3 {[%clk 0:03:00.3]}
2... Nc6 {[%clk 0:02:59.8]} 3. d4 {[%clk 0:03:00.5]} 3... cxd4 {[%clk
0:02:59.7]} 4. Nxd4 {[%clk 0:03:01.4]} 4... Nf6 {[%clk 0:03:00.2]} 5. Nc3 {[%clk
0:03:01.3]} 5... e6 {[%clk 0:03:00.3]} 6. g3 {[%clk 0:02:59.9]} 6... Bb4 {[%clk
0:02:55.5]} 7. Bg2 {[%clk 0:02:59.6]} 7... O-O {[%clk 0:02:34.1]} 8. O-O {[%clk
0:02:58.7]} 8... Qc7 {[%clk 0:02:11.9]} 9. Bf4 {[%clk 0:02:49.6]} 9... Qb6
{[%clk 0:01:40.3]} 10. e5 {[%clk 0:02:46.7]} 10... Qxd4 {[%clk 0:01:37]} 11.
exf6 {[%clk 0:02:45]} 11... Qxd1 {[%clk 0:01:18.6]} 12. Raxd1 {[%clk 0:02:44.1]}
12... Bxc3 {[%clk 0:01:15.5]} 13. bxc3 {[%clk 0:02:45]} 13... gxf6 {[%clk
0:01:15.7]} 14. Bd6 {[%clk 0:02:45.2]} 14... Re8 {[%clk 0:01:16.2]} 15. Rfe1
{[%clk 0:02:26.8]} 15... b6 {[%clk 0:01:11.4]} 16. Re4 {[%clk 0:02:24.2]} 16...
f5 {[%clk 0:01:06.7]} 17. Rh4 {[%clk 0:02:21.7]} 17... Bb7 {[%clk 0:01:02.6]}
18. Rh5 {[%clk 0:02:17.4]} 18... f6 {[%clk 0:00:54]} 19. Rh6 {[%clk 0:02:16.3]}
19... Kg7 {[%clk 0:00:51.2]} 20. Rh4 {[%clk 0:02:15.6]} 20... Nd8 {[%clk
0:00:20.6]} 21. Bc7 {[%clk 0:02:09.3]} 21... d5 {[%clk 0:00:18.7]} 22. c4 {[%clk
0:02:01.2]} 22... Rc8 {[%clk 0:00:17.6]} 23. Bxd8 {[%clk 0:02:00.9]} 23... Rexd8
{[%clk 0:00:18.5]} 24. cxd5 {[%clk 0:02:01.2]} 24... Rxc2 {[%clk 0:00:17.5]} 25.
Ra4 {[%clk 0:01:57.4]} 25... a5 {[%clk 0:00:16.8]} 26. Rb1 {[%clk 0:01:57.1]}
26... Bxd5 {[%clk 0:00:15.9]} 27. Bxd5 {[%clk 0:01:57.1]} 27... Rxd5 {[%clk
0:00:15.3]} 28. Rxb6 {[%clk 0:01:57.8]} 28... e5 {[%clk 0:00:14]} 29. Rb7+
{[%clk 0:01:49.8]} 29... Kg6 {[%clk 0:00:13.9]} 30. Rh4 {[%clk 0:01:49.8]} 30...
h5 {[%clk 0:00:13.9]} 31. Ra4 {[%clk 0:01:20]} 31... Rd1+ {[%clk 0:00:12.7]} 32.
Kg2 {[%clk 0:01:19.7]} 32... Rdd2 {[%clk 0:00:13.6]} 33. Rxa5 {[%clk 0:01:20.3]}
33... Rxf2+ {[%clk 0:00:13.6]} 34. Kg1 {[%clk 0:01:21.2]} 34... Rg2+ {[%clk
0:00:14]} 35. Kf1 {[%clk 0:01:21.8]} 35... Rxh2 {[%clk 0:00:14.6]} 36. Kg1
{[%clk 0:01:22.7]} 36... Rcg2+ {[%clk 0:00:14.8]} 37. Kf1 {[%clk 0:01:23]} 37...
Rxa2 {[%clk 0:00:15.1]} 38. Rxa2 {[%clk 0:01:19.7]} 38... Rxa2 {[%clk 0:00:16]}
39. Rb8 {[%clk 0:01:20]} 39... Ra4 {[%clk 0:00:15.8]} 40. Kf2 {[%clk 0:01:19]}
40... h4 {[%clk 0:00:15.7]} 41. gxh4 {[%clk 0:01:13.2]} 41... Rxh4 {[%clk
0:00:15.7]} 42. Kg3 {[%clk 0:01:14.1]} 42... Rg4+ {[%clk 0:00:15.4]} 43. Kf3
{[%clk 0:01:14.6]} 43... e4+ {[%clk 0:00:15.8]} 44. Ke3 {[%clk 0:01:15.1]} 44...
Rg3+ {[%clk 0:00:16.3]} 45. Kf2 {[%clk 0:01:14.7]} 45... f4 {[%clk 0:00:15.2]}
46. Rg8+ {[%clk 0:01:13.7]} 46... Kf5 {[%clk 0:00:15.5]} 47. Rb8 {[%clk
0:01:13.6]} 47... e3+ {[%clk 0:00:15.4]} 48. Ke2 {[%clk 0:01:13.5]} 48... Rg2+
{[%clk 0:00:15.6]} 49. Kf1 {[%clk 0:01:13.7]} 49... e2+ {[%clk 0:00:15.8]} 50.
Ke1 {[%clk 0:01:10]} 50... f3 {[%clk 0:00:15.9]} 51. Rb4 {[%clk 0:01:09.4]}
51... Rg1+ {[%clk 0:00:15.8]} 0-1

[Event "*** SCC Grand Prix: Titled Tuesday Blitz"]
[Site "Chess.com"]
[Date "2020.10.06"]
[Round "3"]
[White "draksbg"]
[Black "Gerasimenyuk_Miha"]
[Result "0-1"]
[WhiteElo "2589"]
[BlackElo "2424"]
[TimeControl "180+1"]
[EndTime "10:27:09 PDT"]
[Termination "Gerasimenyuk_Miha won on time"]

1. e4 {[%clk 0:02:54.8]} 1... c6 {[%clk 0:02:59.3]} 2. d4 {[%clk 0:02:53.3]}
2... d5 {[%clk 0:02:59.1]} 3. Nc3 {[%clk 0:02:53.2]} 3... dxe4 {[%clk
0:02:59.5]} 4. Nxe4 {[%clk 0:02:53.2]} 4... Nf6 {[%clk 0:03:00.4]} 5. Nxf6+
{[%clk 0:02:53.3]} 5... gxf6 {[%clk 0:02:59.4]} 6. c3 {[%clk 0:02:52.8]} 6... h5
{[%clk 0:02:59.7]} 7. h4 {[%clk 0:02:30]} 7... Nd7 {[%clk 0:02:59.6]} 8. Ne2
{[%clk 0:02:22.6]} 8... Nb6 {[%clk 0:02:59.3]} 9. g3 {[%clk 0:02:22.6]} 9... Bg4
{[%clk 0:02:58.5]} 10. Bg2 {[%clk 0:02:22.3]} 10... Qc7 {[%clk 0:02:57.6]} 11.
Qc2 {[%clk 0:02:17.7]} 11... O-O-O {[%clk 0:02:56.9]} 12. Bf4 {[%clk 0:01:48.7]}
12... Qd7 {[%clk 0:02:49.9]} 13. O-O {[%clk 0:01:34]} 13... Nd5 {[%clk 0:02:47]}
14. Bc1 {[%clk 0:01:06.1]} 14... Rg8 {[%clk 0:02:46.5]} 15. Kh2 {[%clk
0:01:03.7]} 15... e6 {[%clk 0:02:36.6]} 16. a3 {[%clk 0:01:00.6]} 16... Bd6
{[%clk 0:02:36.2]} 17. c4 {[%clk 0:01:00.1]} 17... Ne7 {[%clk 0:02:35.9]} 18.
Be3 {[%clk 0:00:53.5]} 18... Nf5 {[%clk 0:02:35.5]} 19. Nf4 {[%clk 0:00:43.1]}
19... e5 {[%clk 0:02:30.8]} 20. dxe5 {[%clk 0:00:35.8]} 20... fxe5 {[%clk
0:02:30.8]} 21. Nh3 {[%clk 0:00:33.8]} 21... Nxe3 {[%clk 0:02:23.8]} 22. fxe3
{[%clk 0:00:34.7]} 22... e4 {[%clk 0:02:22.4]} 23. Nf4 {[%clk 0:00:34.8]} 23...
f5 {[%clk 0:02:16.1]} 24. b4 {[%clk 0:00:34.8]} 24... Be5 {[%clk 0:02:12.6]} 25.
Ra2 {[%clk 0:00:34.8]} 25... Qg7 {[%clk 0:02:03.4]} 26. Qf2 {[%clk 0:00:24.3]}
26... Qf6 {[%clk 0:02:00.1]} 27. a4 {[%clk 0:00:22.9]} 27... Kb8 {[%clk
0:01:59.9]} 28. c5 {[%clk 0:00:22.7]} 28... Rg7 {[%clk 0:01:48.8]} 29. Rc1
{[%clk 0:00:18.4]} 29... Rdg8 {[%clk 0:01:47.4]} 30. b5 {[%clk 0:00:18.4]} 30...
Bf3 {[%clk 0:01:42.2]} 31. Bxf3 {[%clk 0:00:09.7]} 31... exf3 {[%clk 0:01:39.6]}
32. Rg1 {[%clk 0:00:10.3]} 32... Qf7 {[%clk 0:01:26.8]} 33. Rc2 {[%clk
0:00:08.7]} 33... Rg4 {[%clk 0:01:21.5]} 34. Qxf3 {[%clk 0:00:08.7]} 34... Qb3
{[%clk 0:01:20.5]} 35. Rf2 {[%clk 0:00:08.7]} 35... Qxa4 {[%clk 0:01:15]} 36.
bxc6 {[%clk 0:00:08.8]} 36... bxc6 {[%clk 0:01:10.3]} 37. Kh3 {[%clk 0:00:05]}
37... Kc8 {[%clk 0:01:05.4]} 38. Rd2 {[%clk 0:00:05.1]} 38... Qa3 {[%clk
0:01:00.6]} 39. Re2 {[%clk 0:00:03.1]} 39... Bxf4 {[%clk 0:00:56.9]} 0-1

[Event "*** SCC Grand Prix: Titled Tuesday Blitz"]
[Site "Chess.com"]
[Date "2020.10.06"]
[Round "3"]
[White "louis198"]
[Black "Viaje"]
[Result "1-0"]
[WhiteElo "2569"]
[BlackElo "2384"]
[TimeControl "180+1"]
[EndTime "10:27:14 PDT"]
[Termination "louis198 won by resignation"]

1. d4 {[%clk 0:03:00.2]} 1... Nf6 {[%clk 0:02:59]} 2. Bf4 {[%clk 0:03:00.2]}
2... d5 {[%clk 0:02:58.1]} 3. e3 {[%clk 0:03:00.7]} 3... c5 {[%clk 0:02:57.7]}
4. Nd2 {[%clk 0:03:00.1]} 4... Nc6 {[%clk 0:02:57.4]} 5. Ngf3 {[%clk 0:03:00.2]}
5... Bf5 {[%clk 0:02:53.4]} 6. dxc5 {[%clk 0:02:57]} 6... e6 {[%clk 0:02:53.4]}
7. c4 {[%clk 0:02:57.3]} 7... Bxc5 {[%clk 0:02:52.3]} 8. Rc1 {[%clk 0:02:50.9]}
8... Be7 {[%clk 0:02:43.4]} 9. cxd5 {[%clk 0:02:47.3]} 9... exd5 {[%clk
0:02:43]} 10. Bb5 {[%clk 0:02:44.3]} 10... Rc8 {[%clk 0:02:36.1]} 11. O-O {[%clk
0:02:35.6]} 11... O-O {[%clk 0:02:35.7]} 12. Qa4 {[%clk 0:02:35.6]} 12... Ne4
{[%clk 0:02:28.2]} 13. Nxe4 {[%clk 0:02:35.2]} 13... dxe4 {[%clk 0:02:27.7]} 14.
Rfd1 {[%clk 0:02:35.4]} 14... Qb6 {[%clk 0:02:22.9]} 15. Bxc6 {[%clk 0:02:35]}
15... exf3 {[%clk 0:02:16.3]} 16. Bxf3 {[%clk 0:02:32.7]} 16... Rxc1 {[%clk
0:02:14.1]} 17. Rxc1 {[%clk 0:02:33]} 17... Qxb2 {[%clk 0:02:14.1]} 18. e4
{[%clk 0:02:28.3]} 18... Be6 {[%clk 0:02:10.1]} 19. Qxa7 {[%clk 0:02:25.3]}
19... Bd6 {[%clk 0:01:57.2]} 20. Be3 {[%clk 0:02:10.8]} 20... Bxa2 {[%clk
0:01:48]} 21. g3 {[%clk 0:02:09.9]} 21... Be6 {[%clk 0:01:47.2]} 22. Kg2 {[%clk
0:02:06.4]} 22... b5 {[%clk 0:01:43.3]} 23. Rc6 {[%clk 0:02:05.2]} 23... Be5
{[%clk 0:01:33.6]} 24. Bc5 {[%clk 0:01:59.2]} 24... Re8 {[%clk 0:01:28.2]} 25.
Qb7 {[%clk 0:00:28.9]} 25... h6 {[%clk 0:01:05.8]} 26. h4 {[%clk 0:00:27.7]}
26... Bc4 {[%clk 0:00:51.6]} 27. Be3 {[%clk 0:00:22.8]} 27... Qb1 {[%clk
0:00:43.9]} 28. Rxc4 {[%clk 0:00:19.8]} 28... Bxg3 {[%clk 0:00:37.5]} 29. Rc1
{[%clk 0:00:17.5]} 29... Qb2 {[%clk 0:00:36.2]} 30. Kxg3 {[%clk 0:00:18]} 30...
Re6 {[%clk 0:00:31.6]} 31. Rc8+ {[%clk 0:00:18]} 31... Kh7 {[%clk 0:00:31.6]}
32. h5 {[%clk 0:00:18.5]} 32... Qe5+ {[%clk 0:00:30.1]} 33. Bf4 {[%clk
0:00:17.8]} 33... Qf6 {[%clk 0:00:28.9]} 34. Qb8 {[%clk 0:00:16.6]} 34... g5
{[%clk 0:00:27.7]} 35. hxg6+ {[%clk 0:00:16.7]} 35... fxg6 {[%clk 0:00:27.9]}
36. Rc7+ {[%clk 0:00:16.3]} 36... Re7 {[%clk 0:00:27.9]} 37. Rxe7+ {[%clk
0:00:16.4]} 37... Qxe7 {[%clk 0:00:28.8]} 38. Qxb5 {[%clk 0:00:16.8]} 38... g5
{[%clk 0:00:28.4]} 39. Qf5+ {[%clk 0:00:17.3]} 39... Kg8 {[%clk 0:00:27.6]} 40.
Qg6+ {[%clk 0:00:17.7]} 40... Kf8 {[%clk 0:00:26.4]} 41. Bd6 {[%clk 0:00:17.9]}
1-0

[Event "*** SCC Grand Prix: Titled Tuesday Blitz"]
[Site "Chess.com"]
[Date "2020.10.06"]
[Round "3"]
[White "kasparicy"]
[Black "AleksanderHnydiuk"]
[Result "1-0"]
[WhiteElo "2395"]
[BlackElo "2545"]
[TimeControl "180+1"]
[EndTime "10:27:15 PDT"]
[Termination "kasparicy won on time"]

1. e4 {[%clk 0:03:00.9]} 1... c5 {[%clk 0:02:59.4]} 2. Nf3 {[%clk 0:03:00.6]}
2... e6 {[%clk 0:02:59.4]} 3. d4 {[%clk 0:03:01]} 3... cxd4 {[%clk 0:03:00.3]}
4. Nxd4 {[%clk 0:03:01.4]} 4... Nc6 {[%clk 0:03:00.7]} 5. Be3 {[%clk 0:02:54.3]}
5... Nf6 {[%clk 0:03:00]} 6. Nc3 {[%clk 0:02:53.6]} 6... Bb4 {[%clk 0:02:59.9]}
7. Bd3 {[%clk 0:02:51.2]} 7... d5 {[%clk 0:02:59.8]} 8. exd5 {[%clk 0:02:45.9]}
8... Nxd5 {[%clk 0:02:59.2]} 9. Nxc6 {[%clk 0:02:46.2]} 9... bxc6 {[%clk
0:02:54.2]} 10. Bd4 {[%clk 0:02:46.4]} 10... Nxc3 {[%clk 0:02:46.8]} 11. Bxc3
{[%clk 0:02:44.9]} 11... Bxc3+ {[%clk 0:02:42.9]} 12. bxc3 {[%clk 0:02:45.8]}
12... O-O {[%clk 0:02:37.3]} 13. O-O {[%clk 0:02:44.9]} 13... e5 {[%clk
0:02:35.7]} 14. Qf3 {[%clk 0:02:41.7]} 14... Qc7 {[%clk 0:02:26.1]} 15. Rfe1
{[%clk 0:02:29.5]} 15... f5 {[%clk 0:02:00.3]} 16. Qg3 {[%clk 0:02:09.8]} 16...
Re8 {[%clk 0:01:38.1]} 17. Rad1 {[%clk 0:01:56.8]} 17... Qe7 {[%clk 0:00:57.4]}
18. Bc4+ {[%clk 0:01:31.6]} 18... Kf8 {[%clk 0:00:47.1]} 19. Rd2 {[%clk
0:01:14.8]} 19... Bd7 {[%clk 0:00:29.8]} 20. Rde2 {[%clk 0:01:09.4]} 20... e4
{[%clk 0:00:27.5]} 21. Qf4 {[%clk 0:01:07.8]} 21... Qf6 {[%clk 0:00:24.3]} 22.
Qc7 {[%clk 0:01:04.7]} 22... Qd8 {[%clk 0:00:19.8]} 23. Qf4 {[%clk 0:00:48.5]}
23... Qf6 {[%clk 0:00:19.1]} 24. Rd2 {[%clk 0:00:38.5]} 24... Be6 {[%clk
0:00:14.2]} 25. Rd6 {[%clk 0:00:25.8]} 25... Qf7 {[%clk 0:00:11.2]} 26. Bxe6
{[%clk 0:00:21.6]} 26... Rxe6 {[%clk 0:00:12.1]} 27. Red1 {[%clk 0:00:21.2]}
27... Rae8 {[%clk 0:00:11.3]} 28. h3 {[%clk 0:00:20.2]} 28... Kg8 {[%clk
0:00:10.5]} 29. Rd7 {[%clk 0:00:20]} 29... R6e7 {[%clk 0:00:09.8]} 30. Rxe7
{[%clk 0:00:18.6]} 30... Rxe7 {[%clk 0:00:10.7]} 31. Rd6 {[%clk 0:00:18.6]}
31... Qxa2 {[%clk 0:00:04.4]} 32. Rd8+ {[%clk 0:00:17.2]} 1-0

[Event "*** SCC Grand Prix: Titled Tuesday Blitz"]
[Site "Chess.com"]
[Date "2020.10.06"]
[Round "3"]
[White "GoltsevDmitry2000"]
[Black "Duhless"]
[Result "0-1"]
[WhiteElo "2712"]
[BlackElo "2971"]
[TimeControl "180+1"]
[EndTime "10:27:16 PDT"]
[Termination "Duhless won by resignation"]

1. e4 {[%clk 0:02:59.6]} 1... c6 {[%clk 0:02:55.8]} 2. Nf3 {[%clk 0:02:57.7]}
2... d5 {[%clk 0:02:56.3]} 3. d3 {[%clk 0:02:56.6]} 3... g6 {[%clk 0:02:54.7]}
4. Nbd2 {[%clk 0:02:56.5]} 4... Bg7 {[%clk 0:02:54.2]} 5. c3 {[%clk 0:02:56.6]}
5... Nf6 {[%clk 0:02:51.4]} 6. Qc2 {[%clk 0:02:56.6]} 6... O-O {[%clk
0:02:50.9]} 7. Be2 {[%clk 0:02:56.5]} 7... c5 {[%clk 0:02:50.9]} 8. O-O {[%clk
0:02:56.3]} 8... Nc6 {[%clk 0:02:51.4]} 9. a4 {[%clk 0:02:55.8]} 9... e5 {[%clk
0:02:48.4]} 10. Rd1 {[%clk 0:02:54.1]} 10... b6 {[%clk 0:02:47.3]} 11. b3 {[%clk
0:02:48]} 11... Bb7 {[%clk 0:02:39.7]} 12. Nf1 {[%clk 0:02:45.4]} 12... Rc8
{[%clk 0:02:39.1]} 13. Bg5 {[%clk 0:02:39.2]} 13... d4 {[%clk 0:02:35.6]} 14. c4
{[%clk 0:02:37.3]} 14... h6 {[%clk 0:02:34.6]} 15. Bd2 {[%clk 0:02:36.8]} 15...
a5 {[%clk 0:02:29]} 16. h3 {[%clk 0:02:36.5]} 16... Ne8 {[%clk 0:02:28.8]} 17.
N3h2 {[%clk 0:02:33.4]} 17... Nd6 {[%clk 0:02:27.6]} 18. Ng3 {[%clk 0:02:14.8]}
18... Kh7 {[%clk 0:02:25.6]} 19. Rf1 {[%clk 0:02:14.2]} 19... f5 {[%clk
0:02:20.6]} 20. exf5 {[%clk 0:02:11.6]} 20... gxf5 {[%clk 0:02:20.2]} 21. Nh5
{[%clk 0:02:11.7]} 21... Qe8 {[%clk 0:02:14]} 22. Nxg7 {[%clk 0:02:08.5]} 22...
Kxg7 {[%clk 0:02:14.9]} 23. Qc1 {[%clk 0:02:08]} 23... Qg6 {[%clk 0:02:13.5]}
24. Kh1 {[%clk 0:02:00.9]} 24... Rce8 {[%clk 0:02:07.8]} 25. f3 {[%clk
0:01:54.3]} 25... Kh7 {[%clk 0:02:06.1]} 26. Rg1 {[%clk 0:01:54.4]} 26... Rg8
{[%clk 0:02:03]} 27. Qf1 {[%clk 0:01:28.1]} 27... f4 {[%clk 0:02:00.7]} 28. Be1
{[%clk 0:01:25.3]} 28... Nf5 {[%clk 0:01:57.8]} 29. Bf2 {[%clk 0:01:19.5]} 29...
Ng3+ {[%clk 0:01:47.1]} 30. Bxg3 {[%clk 0:01:17.1]} 30... fxg3 {[%clk 0:01:48]}
31. Ng4 {[%clk 0:00:47]} 31... h5 {[%clk 0:01:47.9]} 32. Qe1 {[%clk 0:00:46.9]}
32... hxg4 {[%clk 0:01:47.3]} 33. fxg4 {[%clk 0:00:47.8]} 33... Ne7 {[%clk
0:01:37.2]} 34. Qxg3 {[%clk 0:00:46.9]} 34... Nf5 {[%clk 0:01:36.9]} 35. Qf2
{[%clk 0:00:41.5]} 35... Ne3 {[%clk 0:01:36.5]} 36. Rae1 {[%clk 0:00:30.1]}
36... Kg7 {[%clk 0:01:32]} 37. Qg3 {[%clk 0:00:29.6]} 37... Rgf8 {[%clk
0:01:29.1]} 38. Kh2 {[%clk 0:00:27.9]} 38... Rf4 {[%clk 0:01:26.3]} 39. Rc1
{[%clk 0:00:16.7]} 39... Ref8 {[%clk 0:01:24.5]} 40. Rce1 {[%clk 0:00:15.6]}
40... Kg8 {[%clk 0:01:18.5]} 41. Qh4 {[%clk 0:00:11.7]} 41... Rf2 {[%clk
0:01:08.7]} 42. Qe7 {[%clk 0:00:04.6]} 42... Bxg2 {[%clk 0:01:07.4]} 43. Qxe5
{[%clk 0:00:03.4]} 43... Bf3+ {[%clk 0:00:53.5]} 44. Kg3 {[%clk 0:00:03.3]}
44... Bxe2 {[%clk 0:00:54.1]} 0-1

[Event "*** SCC Grand Prix: Titled Tuesday Blitz"]
[Site "Chess.com"]
[Date "2020.10.06"]
[Round "3"]
[White "denispopov"]
[Black "TrickyFortem"]
[Result "0-1"]
[WhiteElo "1974"]
[BlackElo "2480"]
[TimeControl "180+1"]
[EndTime "10:27:16 PDT"]
[Termination "TrickyFortem won on time"]

1. e4 {[%clk 0:02:56.6]} 1... c5 {[%clk 0:03:00]} 2. Nc3 {[%clk 0:02:56]} 2...
Nc6 {[%clk 0:03:00.1]} 3. Bb5 {[%clk 0:02:55.2]} 3... g6 {[%clk 0:02:59.6]} 4.
Bxc6 {[%clk 0:02:52.4]} 4... bxc6 {[%clk 0:03:00.5]} 5. d3 {[%clk 0:02:48.4]}
5... Bg7 {[%clk 0:03:01]} 6. Nge2 {[%clk 0:02:46.6]} 6... Nh6 {[%clk 0:02:59.3]}
7. O-O {[%clk 0:02:32.9]} 7... O-O {[%clk 0:02:59]} 8. b3 {[%clk 0:02:29.6]}
8... f5 {[%clk 0:02:45]} 9. Bb2 {[%clk 0:02:27.4]} 9... d6 {[%clk 0:02:44.1]}
10. Na4 {[%clk 0:02:25.3]} 10... e5 {[%clk 0:02:44]} 11. f4 {[%clk 0:02:11.3]}
11... Ng4 {[%clk 0:02:41]} 12. Qd2 {[%clk 0:02:01.3]} 12... fxe4 {[%clk
0:02:17]} 13. dxe4 {[%clk 0:01:58.8]} 13... Ba6 {[%clk 0:02:17]} 14. c4 {[%clk
0:01:55.9]} 14... Bc8 {[%clk 0:02:08.4]} 15. h3 {[%clk 0:01:40.6]} 15... Nf6
{[%clk 0:02:07.5]} 16. fxe5 {[%clk 0:01:39.4]} 16... Nxe4 {[%clk 0:02:07.8]} 17.
Qe3 {[%clk 0:01:37.1]} 17... d5 {[%clk 0:01:53.6]} 18. Nxc5 {[%clk 0:01:18.1]}
18... Bf5 {[%clk 0:01:46.4]} 19. Nxe4 {[%clk 0:01:10.8]} 19... Bxe4 {[%clk
0:01:46.6]} 20. Ng3 {[%clk 0:01:06.2]} 20... Qh4 {[%clk 0:01:41.7]} 21. Nxe4
{[%clk 0:01:03.4]} 21... dxe4 {[%clk 0:01:42.6]} 22. Rxf8+ {[%clk 0:00:44.9]}
22... Rxf8 {[%clk 0:01:43.5]} 23. Rf1 {[%clk 0:00:45.1]} 23... Re8 {[%clk
0:01:42.7]} 24. Rf4 {[%clk 0:00:26.8]} 24... Qh5 {[%clk 0:01:33.4]} 25. Rxe4
{[%clk 0:00:26]} 25... a5 {[%clk 0:01:30.1]} 26. Qe2 {[%clk 0:00:24.6]} 26...
Qf5 {[%clk 0:01:29.3]} 27. g4 {[%clk 0:00:22.4]} 27... Qg5 {[%clk 0:01:29]} 28.
e6 {[%clk 0:00:18.9]} 28... Bxb2 {[%clk 0:01:28.4]} 29. Qxb2 {[%clk 0:00:19.8]}
29... h5 {[%clk 0:01:26.6]} 30. Qe5 {[%clk 0:00:16.9]} 30... Qh4 {[%clk
0:01:22.3]} 31. Kg2 {[%clk 0:00:15]} 31... Rf8 {[%clk 0:01:15.8]} 32. Qg3 {[%clk
0:00:13.5]} 32... Qf6 {[%clk 0:01:14.9]} 33. Re1 {[%clk 0:00:08.2]} 33... h4
{[%clk 0:01:13.1]} 34. Qe3 {[%clk 0:00:06.6]} 34... Re8 {[%clk 0:01:06.8]} 35.
e7 {[%clk 0:00:05.9]} 35... Kf7 {[%clk 0:01:06.8]} 36. Rf1 {[%clk 0:00:05.7]}
36... Rxe7 {[%clk 0:01:06.7]} 37. Rxf6+ {[%clk 0:00:05.8]} 37... Kxf6 {[%clk
0:01:07.6]} 38. Qf4+ {[%clk 0:00:06.1]} 38... Kg7 {[%clk 0:01:08.5]} 39. Qd6
{[%clk 0:00:06.2]} 39... Re2+ {[%clk 0:01:08.7]} 40. Kf3 {[%clk 0:00:06.4]}
40... Rxa2 {[%clk 0:01:09.6]} 41. Qxc6 {[%clk 0:00:06.9]} 41... Rb2 {[%clk
0:01:09.7]} 42. Qc7+ {[%clk 0:00:06.1]} 42... Kh6 {[%clk 0:01:09.6]} 43. Qf4+
{[%clk 0:00:06.2]} 43... Kh7 {[%clk 0:01:10.2]} 44. Qf7+ {[%clk 0:00:06.3]}
44... Kh6 {[%clk 0:01:10.5]} 45. g5+ {[%clk 0:00:06.7]} 45... Kxg5 {[%clk
0:01:10.6]} 46. Qe7+ {[%clk 0:00:06.5]} 46... Kh6 {[%clk 0:01:09.4]} 47. Qe3+
{[%clk 0:00:06.1]} 47... Kh7 {[%clk 0:01:08.6]} 48. Qc3 {[%clk 0:00:06.7]} 48...
Rh2 {[%clk 0:01:07.6]} 49. Kg4 {[%clk 0:00:06.2]} 49... Rg2+ {[%clk 0:01:07.5]}
50. Kxh4 {[%clk 0:00:06.6]} 50... Kh6 {[%clk 0:01:07.9]} 51. Qe3+ {[%clk
0:00:06.3]} 51... g5+ {[%clk 0:01:08.2]} 52. Qxg5+ {[%clk 0:00:02.3]} 52... Rxg5
{[%clk 0:01:09.1]} 53. c5 {[%clk 0:00:01.7]} 53... Rxc5 {[%clk 0:01:09.3]} 54.
b4 {[%clk 0:00:02.6]} 54... axb4 {[%clk 0:01:09.8]} 0-1